[Event "Saint Louis Norm Congress-GM 2022"]
[Site "Saint Louis"]
[Date "2022.05.22"]
[Round "7.2"]
[White "Kavutskiy, Konstantin"]
[Black "Park, Evan"]
[Result "1-0"]
[ECO "D38"]
[WhiteElo "2407"]
[BlackElo "2431"]
[Annotator "TA"]
[PlyCount "109"]
[EventDate "2022.05.20"]
[EventType "tourn"]
[EventCountry "USA"]
[SourceTitle "playchess.com"]
[Source "ChessBase"]
[SourceQuality "1"]
[TimeControl "5400+30"]

{[%evp 12,109,-8,1,8,21,9,8,9,14,7,36,21,33,51,39,68,71,276,302,287,273,389,401,408,357,382,415,610,602,781,750,889,881,1402,1220,29978,29979,5252,1060,1060,999,983,1015,876,507,989,901,29981,29981,4814,262,225,201,745,57,57,57,57,58,109,113,129,32,31,31,31,31,31,31,31,31,31,0,0,0,14,2,29949,29948,29949,29953,8969,1705,29966,29967,29965,29967,29977,29978,29979,29980,29980,29981,29981,29982,29982,29982,29984,29985]} 1. d4 {[%emt 0:04:46]} Nf6 {[%emt 0:00:14]} 2. c4 {[%emt 0:00:05]} e6 {[%emt 0:00:02]} 3. Nf3 {[%emt 0:00:33]} d5 {[%emt 0:00:12]} 4. Nc3 {[%emt 0:00:10]} Bb4 {[%emt 0:00:05]} 5. Qa4+ {[%emt 0:01:15]} Nc6 {[%emt 0:00:09]} 6. a3 {[%emt 0:00:23]} Bxc3+ {[%emt 0:03:00]} 7. bxc3 {[%emt 0:00:09]} O-O {[%emt 0:02:46] D38: Queen's Gambit Declined: Ragozin Defence (4 Nf3 Bb4).} 8. Bg5 {[%emt 0:00:49][%cal Bc1g5,Bg5h4,Bh4g3,Bg3h2][%mdl 32]} h6 {[%emt 0:01:11]} 9. Bh4 {[%emt 0:00:27]} g5 {[%emt 0:03:39] The position is equal.} 10. Bg3 {[%emt 0:00:08]} Ne4 {[%emt 0:00:10]} 11. Qc2 {[%emt 0:05:13]} h5 {[%emt 0:15:28] [#]} 12. h3 $146 {[%emt 0:02:09]} ({Predecessor:} 12. h4 Nxg3 13. fxg3 g4 14. Ng5 f5 15. e3 Na5 16. cxd5 exd5 17. Bd3 c5 18. O-O {1-0 (32) Laurent Paoli,P (2447)-Visakh,N (2515) Vandoeuvre 2021}) 12... f5 {[%emt 0:14:02]} 13. e3 {[%emt 0:04:27]} h4 {[%emt 0:04:36]} 14. Bh2 {[%emt 0:08:27]} g4 $2 {[%emt 0:01:45]} (14... b6 $16) 15. hxg4 $1 $18 {[%emt 0:00:18]} fxg4 {[%emt 0:01:05]} 16. Bf4 $1 {[%emt 0:01:15]} gxf3 {[%emt 0:15:12]} (16... h3 {was called for.} 17. Nd2 e5) 17. gxf3 {[%emt 0:00:16]} e5 {[%emt 0:04:00]} 18. cxd5 {[%emt 0:03:59]} exf4 {[%emt 0:03:12]} 19. dxc6 {[%emt 0:02:01]} Re8 {[%emt 0:06:54]} (19... Qe7 $142 20. Qxe4 Qxe4 21. fxe4 fxe3 22. fxe3 Kf7 23. Bc4+ Ke7 24. Rxh4 bxc6 25. Rh7+ Kd8) 20. fxe4 {[%emt 0:01:55] And now Rg1+ would win.} Qg5 {[%emt 0:00:23] Prevents Rg1.} 21. Bc4+ {[%emt 0:01:51]} Kh8 {[%emt 0:00:08]} 22. O-O-O {[%emt 0:00:59] Hoping for Rdg1.} fxe3 {[%emt 0:00:11]} 23. Rdg1 {[%emt 0:01:26]} Qf4 {[%emt 0:00:47]} 24. fxe3 {[%emt 0:01:17]} Qxe3+ {[%emt 0:00:01]} 25. Kb2 {[%emt 0:00:12]} (25. Qd2 $142 Qxd2+ 26. Kxd2 Rxe4 27. Bd5) 25... h3 {[%emt 0:01:00]} 26. cxb7 {[%emt 0:05:50]} Rb8 {[%emt 0:00:36]} 27. Ka2 {[%emt 0:14:40]} Rxb7 {[%emt 0:02:01]} 28. Ba6 {[%emt 0:01:12]} (28. Qg2 c6 29. Rh2 (29. Ba6 Rh7 $17) 29... Qh6 $18) 28... Be6+ {[%emt 0:00:45]} (28... Rf8 $142 29. Rg2 (29. Bxb7 Rf2 $14) 29... Rb8 30. Bxc8 Rbxc8 31. Rxh3+ Qxh3) 29. d5 {[%emt 0:00:13][%cal Bd4d5,Bd5e6][%mdl 32]} Rb6 {[%emt 0:00:34]} 30. dxe6 {[%emt 0:01:19]} Rxa6 {[%emt 0:00:13]} 31. Qb2 $2 {[%emt 0:02:06]} (31. Qg2 Rxa3+ 32. Kxa3 Qxc3+ 33. Ka2 Qa5+ 34. Kb1 Rb8+ 35. Qb2+ (35. Kc2 {leads to mate.} Qa2+ 36. Kc3 Qa3+ 37. Kd4 Qd6+ 38. Kc3 Qc5+ 39. Kd2 Rb2+ 40. Kd3 Rb3+ 41. Kd2 Qa5+ 42. Kd1 Qa1+ 43. Ke2 Qa2+ 44. Kf1 Rb1#) 35... Rxb2+ 36. Kxb2 Qe5+ 37. Kc1 Qxe6 $15) (31. Qc1 Rxa3+ 32. Qxa3 Rb8 33. Ka1 Qd3 34. Qa5 c5 35. Rg4 Rg8 36. e7 $1) 31... Kh7 {[%emt 0:02:04]} 32. c4 {[%emt 0:11:46][%csl Gg1][%cal Rb2g7]} (32. Qg2 Rxa3+ 33. Kxa3 Qxc3+ 34. Ka2 Qa5+ 35. Kb1 Rb8+ 36. Qb2 Rxb2+ 37. Kxb2 Qb6+ 38. Kc1 Qxe6 $17) 32... Re7 {[%emt 0:00:59] Inhibits Qg7+.} (32... Rg8 33. e7 (33. Rxg8 Kxg8 34. e7 Re6 $14) 33... Re6) 33. Rc1 $2 {[%emt 0:01:10]} (33. Rg4 $18) 33... Rb6 $14 {[%emt 0:02:25]} (33... Raxe6 $2 34. Rc3 Qg5 35. Rcxh3+ Kg6 36. Qh8 $18) 34. Qc3 {[%emt 0:03:23] Really sharp!} Qxc3 {[%emt 0:00:15]} 35. Rxc3 {[%emt 0:00:06]} Rexe6 {[%emt 0:03:27]} (35... Kg8 $14) 36. Rcxh3+ {[%emt 0:00:59][%mdl 4096] Endgame KRR-KRR} Kg6 {[%emt 0:00:54]} 37. Rh6+ {[%emt 0:00:58]} (37. c5 $16 Rbc6 38. Rh7) 37... Kg5 {[%emt 0:00:16]} 38. Rxe6 {[%emt 0:00:41]} Rxe6 {[%emt 0:00:11] KR-KR} 39. Rh7 {[%emt 0:02:19]} Kf4 $1 {[%emt 0:01:03]} 40. Rxc7 {[%emt 0:00:18]} Kxe4 {[%emt 0:00:05]} 41. Kb3 {[%emt 0:01:15]} Kd4 $1 {[%emt 0:01:08]} 42. Kb4 {[%emt 0:04:11] Black must now prevent Rd7+.} Rb6+ {[%emt 0:00:51]} 43. Ka5 {[%emt 0:00:07]} Rb1 {[%emt 0:01:07]} 44. a4 {[%emt 0:00:48][%cal Ba3a4,Ba4a5,Ba5a6,Ba6a7][%mdl 32] Threatening mate with Ka6.} Rc1 $2 {[%emt 0:03:31][%mdl 8192]} (44... Ra1 $11) 45. Kb5 {[%emt 0:00:08]} Rb1+ {[%emt 0:02:25] [#]} 46. Ka6 $1 {[%emt 0:00:10]} Ra1 {[%emt 0:00:10] [#]} 47. a5 $1 {[%emt 0:00:07]} Ke5 {[%emt 0:01:00]} 48. c5 {[%emt 0:00:47] White mates.} Kd5 {[%emt 0:00:42]} 49. Kxa7 {[%emt 0:00:23]} Rb1 {[%emt 0:00:10]} 50. a6 {[%emt 0:00:14]} Rb2 {[%emt 0:00:20]} 51. Ka8 {[%emt 0:00:29]} Rb1 {[%emt 0:01:11]} 52. a7 {[%emt 0:00:37]} Rb3 {[%emt 0:00:17]} 53. Rc8 {[%emt 0:00:47]} Rb2 {[%emt 0:00:33]} 54. Rb8 {[%emt 0:01:02]} Rh2 {[%emt 0:00:40]} 55. Kb7 {[%emt 0:00:32] Weighted Error Value: White=0.39/Black=0.84} 1-0

[Event "Saint Louis Norm Congress-GM 2022"]
[Site "Saint Louis"]
[Date "2022.05.22"]
[Round "7.3"]
[White "Schitco, Ivan"]
[Black "Repka, Christopher"]
[Result "1/2-1/2"]
[ECO "A23"]
[WhiteElo "2484"]
[BlackElo "2524"]
[Annotator "TA"]
[PlyCount "34"]
[EventDate "2022.05.20"]
[EventType "tourn"]
[EventCountry "USA"]
[SourceTitle "playchess.com"]
[Source "ChessBase"]
[SourceQuality "1"]
[TimeControl "5400+30"]

{[%evp 9,34,5,32,4,8,6,13,4,7,7,9,8,10,5,54,57,50,0,4,0,6,11,12,15,7,10,0]} 1. c4 {[%emt 0:00:03]} e5 {[%emt 0:02:31]} 2. g3 {[%emt 0:00:21]} Nf6 {[%emt 0:00:44]} 3. Bg2 {[%emt 0:00:16]} Bc5 {[%emt 0:00:04]} 4. Nc3 {[%emt 0:02:04]} c6 {[%emt 0:00:46]} 5. e3 {[%emt 0:12:02]} Bb6 {[%emt 0:00:29]} 6. d4 {[%emt 0:03:16] A23: English Opening: 1...e5 2 Nc3 Nf6 3 g3 c6.} exd4 {[%emt 0:00:05]} 7. exd4 {[%emt 0:00:05]} d5 {[%emt 0:00:03]} 8. cxd5 {[%emt 0:02:49]} Nxd5 {[%emt 0:00:05]} 9. Nxd5 {[%emt 0:06:33]} cxd5 {[%emt 0:00:12]} 10. Ne2 {[%emt 0:00:53]} Bg4 {[%emt 0:00:17]} 11. h3 {[%emt 0:01:44] [#]} Bh5 $5 $146 {[%emt 0:00:04][%mdl 8] An interesting novelty.} (11... Bf5 $11 {is superior.}) ({Predecessor:} 11... Be6 12. Nf4 O-O 13. O-O Nc6 14. Be3 Rc8 15. Nxe6 fxe6 16. Qg4 Qf6 17. Rad1 Ne7 18. Bg5 Qf7 19. Bxe7 Qxe7 20. Rfe1 Rf5 21. Qxf5 {1-0 (21) Kurcsics,E (1929)-Nemeth,N (1727) Balatonlelle 2016}) 12. O-O {[%emt 0:02:00]} O-O {[%emt 0:00:23]} 13. Qd3 {[%emt 0:10:21]} (13. g4 $14 Bg6 14. Nc3) 13... Bg6 {[%emt 0:03:17] The position is equal.} 14. Qb3 {[%emt 0:01:37]} Be4 {[%emt 0:00:04]} 15. Nc3 {[%emt 0:04:10]} Bxg2 {[%emt 0:07:15]} 16. Kxg2 {[%emt 0:00:07]} Nc6 {[%emt 0:00:02]} 17. Be3 {[%emt 0:03:55]} Ne7 {[%emt 0:01:27] Weighted Error Value: White=0.08 (flawless) /Black=0.08 (flawless)} 1/2-1/2

[Event "Saint Louis Norm Congress-GM 2022"]
[Site "Saint Louis"]
[Date "2022.05.22"]
[Round "7.4"]
[White "Daggupati, Balaji"]
[Black "Brodsky, David"]
[Result "1-0"]
[ECO "B93"]
[WhiteElo "2486"]
[BlackElo "2484"]
[Annotator "TA"]
[PlyCount "55"]
[EventDate "2022.05.20"]
[EventType "tourn"]
[EventCountry "USA"]
[SourceTitle "playchess.com"]
[Source "ChessBase"]
[SourceQuality "1"]
[TimeControl "5400+30"]

{[%evp 12,55,-7,-5,25,0,0,0,0,0,43,31,54,27,56,34,63,48,61,78,336,323,354,367,596,598,598,600,583,548,1707,1296,2306,2218,29992,29993,29993,1116,29994,29995,29995,29996,29996,29997,29997,29998]} 1. e4 {[%emt 0:00:03]} c5 {[%emt 0:00:02]} 2. Nf3 {[%emt 0:00:05]} d6 {[%emt 0:00:03]} 3. d4 {[%emt 0:00:06]} cxd4 {[%emt 0:00:04]} 4. Nxd4 {[%emt 0:00:05]} Nf6 {[%emt 0:00:02]} 5. Nc3 {[%emt 0:00:07]} a6 {[%emt 0:00:02]} 6. f4 {[%emt 0:00:11]} e5 {[%emt 0:00:22]} 7. Nb3 {[%emt 0:00:06]} Nc6 {[%emt 0:03:01] B93: Sicilian Najdorf: 6 f4.} 8. Bd3 {[%emt 0:00:49]} Be7 {[%emt 0:00:10]} 9. O-O {[%emt 0:00:07]} O-O {[%emt 0:00:03] The position is equal.} 10. Nd5 {[%emt 0:00:06] [#]} h6 $146 {[%emt 0:16:21]} ({Predecessor:} 10... Nxd5 11. exd5 Nb4 12. Be2 Bf5 13. fxe5 Bxc2 14. Qd4 dxe5 15. Qxe5 Nxa2 16. Nd4 Nxc1 17. Raxc1 {0-1 (36) Salhi,N (1960)-Djaballah,F (2040) Algiers 2013}) 11. f5 {[%emt 0:07:45]} b5 {[%emt 0:14:06]} 12. Qf3 {[%emt 0:02:56]} Bb7 {[%emt 0:01:25]} 13. Bd2 {[%emt 0:01:51]} Re8 {[%emt 0:05:01]} 14. Qg3 {[%emt 0:15:01] And now Bxh6 would win.} Kh8 {[%emt 0:06:07]} 15. Qh3 {[%emt 0:02:50][%cal Od2h6] Threatens to win with Bxh6! 0x0.0019223ab0b2dp-1022s more active pieces.} ({Don't play} 15. Nxe7 Nxe7 16. Rfe1 Rc8 $11) 15... Kg8 $2 {[%emt 0:11:51][%mdl 8192] [#] Loses the game.} (15... Kh7 $16 {might work better.}) 16. Bxh6 $1 $18 {[%emt 0:16:21][%mdl 512]} gxh6 {[%emt 0:01:21]} (16... Nh7 17. Qg4) 17. Qxh6 {[%emt 0:01:33] Hoping for Rf3.} Nxd5 $2 {[%emt 0:13:55] [#]} (17... Ng4 18. Qh5 Bf6 19. Qxg4+ Kf8) 18. Rf3 $1 {[%emt 0:02:32]} Bg5 {[%emt 0:01:16]} 19. Rg3 {[%emt 0:01:35]} f6 {[%emt 0:02:21] aiming for ...Nf4.} 20. exd5 {[%emt 0:00:20]} Ra7 {[%emt 0:14:57]} 21. h4 {[%emt 0:03:14][%cal Bh2h4,Bh4g5,Bg5f6][%mdl 96] Pin} Ba8 {[%emt 0:00:31]} 22. hxg5 {[%emt 0:02:22]} Rh7 {[%emt 0:01:18]} 23. gxf6+ {[%emt 0:01:03]} Kh8 {[%emt 0:00:05] [#]} 24. Qxh7+ $3 {[%emt 0:02:11][%mdl 512]} Kxh7 {[%emt 0:00:07]} 25. Kf2 {[%emt 0:00:25][%cal Ra1h1] White mates.} Qb6+ {[%emt 0:01:07]} 26. Ke2 {[%emt 0:00:07][%cal Ra1h1]} Nd4+ {[%emt 0:00:13]} 27. Nxd4 {[%emt 0:00:05]} exd4+ {[%emt 0:00:06]} 28. Kf2 {[%emt 0:00:05] Weighted Error Value: White=0.05 (flawless) /Black=0.66} 1-0

[Event "Saint Louis Norm Congress-GM 2022"]
[Site "Saint Louis"]
[Date "2022.05.22"]
[Round "7.5"]
[White "Ruiz Castillo, Joshua Daniel"]
[Black "Belous, Vladimir"]
[Result "0-1"]
[ECO "C42"]
[WhiteElo "2473"]
[BlackElo "2525"]
[Annotator "TA"]
[PlyCount "50"]
[EventDate "2022.05.20"]
[EventType "tourn"]
[EventCountry "USA"]
[SourceTitle "playchess.com"]
[Source "ChessBase"]
[SourceQuality "1"]
[TimeControl "5400+30"]

{[%evp 13,50,20,6,12,15,27,25,2,0,-24,14,-21,-14,-66,-74,-75,-82,-93,-88,-126,-132,-133,-120,-122,-129,-144,-129,-187,-181,-186,-140,-140,-136,-356,-348,-358,-350,-1411,-1382]} 1. e4 {[%emt 0:01:20]} e5 {[%emt 0:00:08]} 2. Nf3 {[%emt 0:00:05]} Nf6 {[%emt 0:00:05]} 3. Nxe5 {[%emt 0:01:00]} d6 {[%emt 0:00:06]} 4. Nf3 {[%emt 0:00:03]} Nxe4 {[%emt 0:00:05]} 5. Nc3 {[%emt 0:00:59]} Nxc3 {[%emt 0:00:05]} 6. dxc3 {[%emt 0:00:01]} Be7 {[%emt 0:00:06]} 7. Be3 {[%emt 0:01:23]} Nd7 {[%emt 0:02:21][%cal Bb8d7,Bd7f6,Bf6e4][%mdl 32]} 8. Qd2 {[%emt 0:01:32] C42: Petroff Defence: 3 Nxe5 and unusual White 3rd moves.} O-O {[%emt 0:00:40]} 9. O-O-O {[%emt 0:00:10]} Nf6 {[%emt 0:00:09]} 10. Kb1 {[%emt 0:00:55] White has an edge.} Re8 {[%emt 0:01:21]} 11. h3 {[%emt 0:01:23] [#]} Ne4 $146 {[%emt 0:04:37]} ({Predecessor:} 11... Bd7 12. Bd3 c5 13. c4 Bc6 14. Rhe1 Ne4 15. Bxe4 Bxe4 16. Bf4 Bf8 17. Ng5 Bc6 {0-1 (58) Hansen,E (2606)-Paravyan,D (2617) Chess.com INT 2022}) 12. Qe1 {[%emt 0:03:32]} (12. Qd5 {feels hotter.} Bf6 13. Bc4 Re7 14. Qh5) 12... Bf6 {[%emt 0:06:15]} 13. g4 {[%emt 0:01:06]} (13. Bd3 $11) 13... c5 $1 $15 {[%emt 0:03:10]} 14. g5 {[%emt 0:37:21]} Nxg5 {[%emt 0:00:20]} 15. Nxg5 {[%emt 0:00:05]} Bxg5 {[%emt 0:00:05]} 16. Bb5 {[%emt 0:00:13]} Re5 {[%emt 0:01:37]} 17. Bxg5 {[%emt 0:02:14]} Qxg5 {[%emt 0:00:18]} 18. Qf1 {Strongly threatening f4.} Qf6 {[%emt 0:06:08] Black is more active.} 19. Qg2 {[%emt 0:01:54]} g6 {[%emt 0:02:30]} 20. f4 {[%emt 0:09:09]} (20. Rhe1 $17) 20... Qxf4 $19 {[%emt 0:04:24]} 21. Rxd6 {[%emt 0:00:50]} Kg7 {[%emt 0:01:16]} (21... Rg5 $19 22. Rd8+ Kg7) 22. Rdd1 $17 {[%emt 0:05:22]} Bf5 {[%emt 0:08:48]} 23. Qxb7 $2 {[%emt 0:00:28] [#]} (23. Rhf1 $17 Qe4 24. Qxe4 Bxe4 25. Rd7) 23... Be4 $1 $19 {[%emt 0:00:10]} 24. Bc6 {[%emt 0:00:21] Qxa8 is the strong threat.} Bxh1 {[%emt 0:00:10]} 25. Qxa8 {[%emt 0:00:07] [#]} (25. Rxh1 Rd8 26. a3) 25... Qd2 $3 {[%emt 0:00:07][%mdl 512] Weighted Error Value: White=0.56/Black=0.04 (flawless)} 0-1

[Event "Saint Louis Norm Congress-GM 2022"]
[Site "Saint Louis"]
[Date "2022.05.23"]
[Round "8.1"]
[White "Stearman, Josiah"]
[Black "Belous, Vladimir"]
[Result "0-1"]
[ECO "B60"]
[WhiteElo "2375"]
[BlackElo "2525"]
[Annotator "TA"]
[PlyCount "102"]
[EventDate "2022.05.20"]
[EventType "tourn"]
[EventCountry "USA"]
[SourceTitle "playchess.com"]
[Source "ChessBase"]
[SourceQuality "1"]
[TimeControl "5400+30"]

{[%evp 12,102,50,20,67,0,44,38,31,0,0,0,0,0,0,-32,-17,-58,-56,-58,-64,-64,-79,-78,-59,-130,-108,-113,-75,-85,-90,-92,-92,-88,-91,-91,-91,-90,-55,-84,-87,-95,-68,-88,-91,-102,-91,-95,-77,-77,0,-95,-94,-100,-47,-186,-203,-183,-182,-183,-182,-333,-317,-439,-470,-412,-329,-488,-463,-1136,-967,-2098,-1858,-29942,-5841,-29974,-29975,-29974,-29975,-29975,-29974,-29982,-29983,-29983,-29984,-29984,-29985,-29988,-29989,-29989,-29990,-29990,-29991]} 1. e4 {[%emt 0:02:49]} c5 {[%emt 0:00:42]} 2. Nf3 {[%emt 0:00:03]} Nc6 {[%emt 0:00:37]} 3. d4 {[%emt 0:00:06]} cxd4 {[%emt 0:00:04]} 4. Nxd4 {[%emt 0:00:03]} Nf6 {[%emt 0:01:50]} 5. Nc3 {[%emt 0:00:10]} d6 {[%emt 0:00:10]} 6. Bg5 {[%emt 0:00:43]} Bd7 {[%emt 0:00:05]} 7. f4 {[%emt 0:04:55]} Rc8 {[%emt 0:03:27] B60: Sicilian: Richter-Rauzer: Unusual Black 6th moves and 6...Bd7 without 7 Qd2.} (7... e6 $11 {deserves consideration.}) 8. Be2 {[%emt 0:03:39]} ({Better is} 8. Qd2 $14) 8... a6 {[%emt 0:04:34]} (8... Qb6 $5 {[%cal Rc6d4]} 9. Nb3 Qe3 $11) 9. Nxc6 {[%emt 0:04:08]} Bxc6 {[%emt 0:01:16] White is slightly better.} 10. Qd4 {[%emt 0:00:18]} e6 {[%emt 0:01:21] [#]} 11. O-O-O $146 {[%emt 0:03:21]} ({Predecessor:} 11. O-O Be7 12. Kh1 O-O 13. Rad1 Qa5 14. Qe3 h6 15. Bh4 Ng4 16. Bxg4 Bxh4 17. f5 exf5 18. Rxf5 {0-1 (41) Grozav,V (2198)-Berescu,A (2489) Eforie Nord 2008}) 11... Be7 {[%emt 0:00:11]} 12. Bf3 {[%emt 0:01:17]} O-O {[%emt 0:09:12]} 13. g4 {[%emt 0:05:30]} Qa5 {[%emt 0:07:07]} 14. f5 {[%emt 0:03:56] [#]} Nxe4 $1 {[%emt 0:03:06]} 15. Bxe7 {[%emt 0:02:25]} Nxc3 {[%emt 0:00:20][%mdl 64] Discovered Attack} 16. Bxf8 {[%emt 0:06:29]} Rxf8 {[%emt 0:00:17] Really sharp!} 17. bxc3 {[%emt 0:01:37]} Bxf3 {[%emt 0:03:28][%cal Bc6f3,Bf3d1,Bd1c2][%mdl 32]} 18. Rhf1 {[%emt 0:01:17]} (18. fxe6 $15 fxe6 19. Rhf1) 18... Bxd1 {[%emt 0:01:15]} 19. fxe6 {[%emt 0:00:28] [#]} Bxc2 $1 {[%emt 0:05:52]} 20. exf7+ {[%emt 0:04:09]} Rxf7 {[%emt 0:02:39]} 21. Qc4 {[%emt 0:00:42]} Qc7 {[%emt 0:01:06]} 22. Qxc7 {[%emt 0:00:07]} Rxc7 {[%emt 0:00:05]} 23. Kxc2 $17 {[%emt 0:00:04][%mdl 4096] Endgame KR-KR} Rf7 {[%emt 0:00:10]} 24. Rd1 {[%emt 0:05:09]} Rf6 {[%emt 0:00:05]} 25. a4 {[%emt 0:00:32]} Rh6 {[%emt 0:05:16]} 26. h3 {[%emt 0:01:08]} Kf8 {[%emt 0:02:15]} 27. a5 {[%emt 0:02:33]} Rxh3 {[%emt 0:00:54]} 28. Rxd6 {[%emt 0:00:02]} Rg3 {[%emt 0:00:06]} 29. Rd4 {[%emt 0:00:43]} Ke7 {[%emt 0:00:06]} 30. Rb4 {[%emt 0:00:51]} Kd6 {[%emt 0:00:56]} (30... Kd8 $17) 31. Kb3 {[%emt 0:05:27]} (31. Rxb7 $11 Rxg4 32. Rb6+ Kc7 33. Rxa6) 31... Kc5 {[%emt 0:00:38]} 32. Re4 {[%emt 0:01:57]} h6 {[%emt 0:02:30]} (32... Rg1 $17 {...h6 is the strong threat.} 33. Kc2 Kb5 34. Re5+ Kc6) 33. Rf4 {[%emt 0:01:51] Loses the game.} (33. Rb4 $15) 33... Rg1 $19 {[%emt 0:00:04]} 34. Rf5+ {[%emt 0:00:31]} Kc6 {[%emt 0:02:14]} 35. Rf4 {[%emt 0:00:02]} Rb1+ {[%emt 0:00:33]} 36. Ka4 $2 {[%emt 0:01:15]} (36. Kc2 Rb5 37. Rc4+ Rc5 38. Ra4) 36... Kd5 {[%emt 0:03:41]} 37. Rd4+ {[%emt 0:02:19]} Ke5 {[%emt 0:00:19]} 38. Rd7 {[%emt 0:00:05]} g5 {[%emt 0:01:39][%cal Bg7g5,Bg5g4,Bg4g3,Bg3g2][%mdl 32] Strongly threatening ...Kf4.} 39. c4 {[%emt 0:00:13]} (39. Rd4 $142) 39... Kf4 {[%emt 0:00:32]} 40. Rd6 {[%emt 0:01:00]} (40. Rd4+ $142 Kf3 41. Ka3) 40... Kxg4 {[%emt 0:00:19] White must now prevent ...h5.} 41. Rxh6 {[%emt 0:00:01]} Kf5 {[%emt 0:01:39]} 42. c5 {[%emt 0:00:29]} g4 {[%emt 0:00:26] ( -> ...g3)} 43. c6 {[%emt 0:01:38]} bxc6 {[%emt 0:01:27] Black mates.} 44. Rxc6 {[%emt 0:00:01]} g3 {[%emt 0:00:19]} 45. Rc5+ {[%emt 0:00:05]} Kf4 {[%emt 0:00:04]} 46. Rc4+ {[%emt 0:00:22]} Kf3 {[%emt 0:00:03]} 47. Rc3+ {[%emt 0:00:05]} Kf2 {[%emt 0:00:03]} 48. Rc2+ {[%emt 0:00:05]} Kf1 {[%emt 0:00:04]} 49. Rc6 {[%emt 0:00:11]} g2 {[%emt 0:00:04]} 50. Rf6+ {[%emt 0:00:06]} Ke2 {[%emt 0:00:03]} 51. Re6+ {[%emt 0:00:16]} Kd3 {[%emt 0:00:05] Weighted Error Value: White=0.63/Black=0.09 (flawless)} 0-1

[Event "Saint Louis Norm Congress-GM 2022"]
[Site "Saint Louis"]
[Date "2022.05.23"]
[Round "8.2"]
[White "Brodsky, David"]
[Black "Ruiz Castillo, Joshua Daniel"]
[Result "1-0"]
[ECO "B45"]
[WhiteElo "2484"]
[BlackElo "2473"]
[Annotator "TA"]
[PlyCount "51"]
[EventDate "2022.05.20"]
[EventType "tourn"]
[EventCountry "USA"]
[SourceTitle "playchess.com"]
[Source "ChessBase"]
[SourceQuality "1"]
[TimeControl "5400+30"]

{[%evp 27,51,7,14,0,9,13,10,16,12,23,18,18,14,6,50,41,85,0,106,125,113,126,100,69,289,285]} 1. e4 {[%emt 0:00:02]} c5 {[%emt 0:01:41]} 2. Nf3 {[%emt 0:00:07]} Nc6 {[%emt 0:00:16]} 3. d4 {[%emt 0:00:08]} cxd4 {[%emt 0:00:05]} 4. Nxd4 {[%emt 0:00:04]} e6 {[%emt 0:00:41]} 5. Nc3 {[%emt 0:00:08]} Nf6 {[%emt 0:00:12]} 6. Nxc6 {[%emt 0:00:19]} bxc6 {[%emt 0:00:16]} 7. e5 {[%emt 0:00:08]} Nd5 {[%emt 0:00:01]} 8. Ne4 {[%emt 0:00:05]} Qc7 {[%emt 0:00:08]} 9. f4 {[%emt 0:00:14]} Qb6 {[%emt 0:00:07]} 10. c4 {[%emt 0:00:23]} Bb4+ {[%emt 0:00:17]} 11. Ke2 {[%emt 0:00:05]} f5 {[%emt 0:00:46]} 12. Nf2 {[%emt 0:00:07]} Ba6 {[%emt 0:12:31]} 13. Kf3 {[%emt 0:00:10]} Ne7 {[%emt 0:01:40]} 14. Be3 {[%emt 0:00:06]} Bc5 {[%emt 0:05:52]} 15. Bxc5 {[%emt 0:00:15] B45: Sicilian Four Knights.} Qxc5 {[%emt 0:00:01]} 16. Qa4 {[%emt 0:01:14]} Bb7 {[%emt 0:06:18][%cal Og7g5]} 17. h4 {[%emt 0:01:13] The position is equal.} Qb6 {[%emt 0:04:16]} 18. Qa3 {[%emt 0:04:00]} c5+ {[%emt 0:01:07]} 19. Kg3 {[%emt 0:00:19] [#]} h6 $146 {[%emt 0:12:43]} ({Predecessor:} 19... O-O 20. Rd1 Rfd8 21. Be2 Rab8 22. Rd2 Nc6 23. Rd6 Qb4 24. Qxb4 Nxb4 25. a3 Nc2 {1-0 (37) Esipenko,A (2716)-Abasov,N (2656) Krasnaya Polyana 2021}) 20. Rd1 {[%emt 0:32:26]} a5 {[%emt 0:31:57]} (20... O-O-O $5 {[%cal Rg7g5]}) 21. Be2 {[%emt 0:05:52]} Qc7 {[%emt 0:00:59]} ({Less strong is} 21... Qc6 22. Bh5+ (22. Bf3 Qc7 $16) 22... g6 23. Bf3 $16) 22. Rd2 {[%emt 0:06:04] White is more active.} (22. Rd6 $16) 22... Kf7 {[%emt 0:01:34]} (22... Qc6 $2 23. Bf3 Qc8 24. Bxb7 Qxb7 25. Rhd1 $18 (25. Qxc5 Rc8 $16)) (22... O-O-O $1 $11) 23. Rhd1 $16 {[%emt 0:01:55]} Rhd8 {[%emt 0:03:48]} (23... Qc6 $2 24. Bf3 Qc8 25. Rxd7 Bxf3 26. Qxf3 $18) 24. Nd3 {[%emt 0:01:45]} Rac8 {[%emt 0:00:01]} 25. h5 {[%emt 0:00:40]} Kg8 $2 {[%emt 0:07:17] [#]} (25... Qc6 $2 26. Bf3 Qc7 27. Bxb7 Qxb7 28. Nxc5 $18) (25... Be4 $14) 26. Nxc5 $1 {[%emt 0:02:42][%mdl 512] Weighted Error Value: White=0.10 (very precise) /Black=0.49} 1-0